{"text_format":"3","workbook":"xlsx","n_sheets":4,"sheets":["Sheet1","Data","Pivot","Pricing Schedule"],"not_rendered":{"defined_names":4,"comments":1,"pivot_tables":1},"read":"whole","date_system":"1900"}

{"sheet":"Sheet1","index":0,"n_rows":1,"n_cols":1,"rows_kept":1}
["WCG SITE / LOCATION"]

{"sheet":"Data","index":1,"n_rows":42,"n_cols":14,"rows_kept":42}
["No","R/F/HO","R/F/HO DETAILS","WCG SITE\n/LOCATION","TOWN","DISTRICT MUNICIPALITY","CURRENT TOTAL NUMBER OF GUARDS REQUIRED","GRADE OF GUARDS","SHIFT","NUMBER OF GUARDS PER DAY SHIFT","NUMBER OF GUARDS PER NIGHT SHIFT","MALE / FEMALE GUARD RATION","WORKING HOURS","EQUIPMENT REQUIREMENTS TO BE INCLUDED"]
[1,"F","Security Guards","House Outenikwa","George","Garden Route",20,"C","Day",10,0,"70% Male Security Officers\n30% Female Security Officers","06h00 - 18h00\n12 hours 7 days per week \nMonday - Sunday including Public Holidays","a) Hand Held Metal Detector b) Two way Radios"]
[1,"F","Security Guards","House Outenikwa","George","Garden Route",20,"C","Night",0,10,"70% Male Security Officers\n30% Female Security Officers","18h00 - 06h00\n12 hours 7 days per week \nMonday - Sunday including Public Holidays","a) Hand Held Metal Detector b) Two way Radios"]
[1,"F","Control Room","House Outenikwa","George","Garden Route",4,"B","Day",2,0,"N/A","06h00 - 18h00\n12 hours 7 days per week \nMonday - Sunday including Public Holidays","a) Two way Radios"]
[1,"F","Control Room","House Outenikwa","George","Garden Route",4,"B","Night",0,2,"N/A","18h00 - 06h00\n12 hours 7 days per week \nMonday - Sunday including Public Holidays","a) Two way Radios"]
[2,"F","Security Guards","House Vredelus","Elsies River","City of Cape Town",20,"C","Day",10,0,"70% Male Security Officers\n30% Female Security Officers","06h00 - 18h00\n12 hours 7 days per week \nMonday - Sunday including Public Holidays","a) Hand Held Metal Detector b) Two way Radios"]
[2,"F","Security Guards","House Vredelus","Elsies River","City of Cape Town",20,"C","Night",0,10,"70% Male Security Officers\n30% Female Security Officers","18h00 - 06h00\n12 hours 7 days per week \nMonday - Sunday including Public Holidays","a) Hand Held Metal Detector b) Two way Radios"]
[2,"F","Control Room","House Vredelus","Elsies River","City of Cape Town",4,"B","Day",2,0,"N/A","06h00 - 18h00\n12 hours 7 days per week \nMonday - Sunday including Public Holidays","a) Two way Radios"]
[2,"F","Control Room","House Vredelus","Elsies River","City of Cape Town",4,"B","Night",0,2,"N/A","18h00 - 06h00\n12 hours 7 days per week \nMonday - Sunday including Public Holidays","a) Two way Radios"]
[3,"F","Security Guards","Clanwilliam CYCC","Clanwilliam",null,20,"C","Day",10,0,"70% Male Security Officers\n30% Female Security Officers","06h00 - 18h00\n12 hours 7 days per week \nMonday - Sunday including Public Holidays","a) Hand Held Metal Detector b) Two way Radios"]
[3,"F","Security Guards","Clanwilliam CYCC","Clanwilliam",null,20,"C","Night",0,10,"70% Male Security Officers\n30% Female Security Officers","18h00 - 06h00\n12 hours 7 days per week \nMonday - Sunday including Public Holidays","a) Hand Held Metal Detector b) Two way Radios"]
[3,"F","Control Room","Clanwilliam CYCC","Clanwilliam",null,4,"B","Day",2,0,"N/A","06h00 - 18h00\n12 hours 7 days per week \nMonday - Sunday including Public Holidays","a) Two way Radios"]
[3,"F","Control Room","Clanwilliam CYCC","Clanwilliam",null,4,"B","Night",0,2,"N/A","18h00 - 06h00\n12 hours 7 days per week \nMonday - Sunday including Public Holidays","a) Two way Radios"]
[4,"F","Security Guards","Bonnytoun","Kraaifontein","Cape Winelands",24,"C","Day",12,0,"70% Male Security Officers\n30% Female Security Officers","06h00 - 18h00\n12 hours 7 days per week \nMonday - Sunday including Public Holidays","a) Hand Held Metal Detector b) Two way Radios"]
[4,"F","Security Guards","Bonnytoun","Kraaifontein","Cape Winelands",24,"C","Night",0,12,"70% Male Security Officers\n30% Female Security Officers","18h00 - 06h00\n12 hours 7 days per week \nMonday - Sunday including Public Holidays","a) Hand Held Metal Detector b) Two way Radios"]
[4,"F","Control Room","Bonnytoun","Kraaifontein","Cape Winelands",4,"B","Day",2,0,"N/A","06h00 - 18h00\n12 hours 7 days per week \nMonday - Sunday including Public Holidays","a) Two way Radios"]
[4,"F","Control Room","Bonnytoun","Kraaifontein","Cape Winelands",4,"B","Night",0,2,"N/A","18h00 - 06h00\n12 hours 7 days per week \nMonday - Sunday including Public Holidays","a) Two way Radios"]
[5,"F","Security Guards","Kraaifontein ROAR","Kraaifontein","Cape Winelands",28,"C","Day",14,0,"50% Male Security Officers\n50% Female Security Officers","06h00 - 18h00\n12 hours 7 days per week \nMonday - Sunday including Public Holidays","a) Hand Held Metal Detector b) Two way Radios"]
[5,"F","Security Guards","Kraaifontein ROAR","Kraaifontein","Cape Winelands",28,"C","Night",0,14,"50% Male Security Officers\n50% Female Security Officers","18h00 - 06h00\n12 hours 7 days per week \nMonday - Sunday including Public Holidays","a) Hand Held Metal Detector b) Two way Radios"]
[5,"F","Control Room","Kraaifontein ROAR","Kraaifontein","Cape Winelands",4,"B","Day",2,0,"N/A","06h00 - 18h00\n12 hours 7 days per week \nMonday - Sunday including Public Holidays","a) Two way Radios"]
[5,"F","Control Room","Kraaifontein ROAR","Kraaifontein","Cape Winelands",4,"B","Night",0,2,"N/A","18h00 - 06h00\n12 hours 7 days per week \nMonday - Sunday including Public Holidays","a) Two way Radios"]
[6,"F","Security Guards","Lindelani","Stellenbosch","Cape Winelands",20,"C","Day",10,0,"50% Male Security Officers\n50% Female Security Officers","06h00 - 18h00\n12 hours 7 days per week \nMonday - Sunday including Public Holidays","a) Hand Held Metal Detector b) Two way Radios"]
[6,"F","Security Guards","Lindelani","Stellenbosch","Cape Winelands",20,"C","Night",0,10,"50% Male Security Officers\n50% Female Security Officers","18h00 - 06h00\n12 hours 7 days per week \nMonday - Sunday including Public Holidays","a) Hand Held Metal Detector b) Two way Radios"]
[6,"F","Control Room","Lindelani","Stellenbosch","Cape Winelands",4,"B","Day",2,0,"N/A","06h00 - 18h00\n12 hours 7 days per week \nMonday - Sunday including Public Holidays","a) Two way Radios"]
[6,"F","Control Room","Lindelani","Stellenbosch","Cape Winelands",4,"B","Night",0,2,"N/A","18h00 - 06h00\n12 hours 7 days per week \nMonday - Sunday including Public Holidays","a) Two way Radios"]
[7,"F","Security Guards","Kensington Treatment Centre","Kensington",null,8,"C","Day",4,0,"70% Male Security Officers\n30% Female Security Officers","06h00 - 18h00\n12 hours 7 days per week \nMonday - Sunday including Public Holidays","a) Hand Held Metal Detector b) Two way Radios"]
[7,"F","Security Guards","Kensington Treatment Centre","Kensington",null,8,"C","Night",0,4,"70% Male Security Officers\n30% Female Security Officers","18h00 - 06h00\n12 hours 7 days per week \nMonday - Sunday including Public Holidays","a) Hand Held Metal Detector b) Two way Radios"]
[7,"F","Control Room","Kensington Treatment Centre","Kensington",null,4,"B","Day",2,0,"N/A","06h00 - 18h00\n12 hours 7 days per week \nMonday - Sunday including Public Holidays","a) Two way Radios"]
[7,"F","Control Room","Kensington Treatment Centre","Kensington",null,4,"B","Night",0,2,"N/A","18h00 - 06h00\n12 hours 7 days per week \nMonday - Sunday including Public Holidays","a) Two way Radios"]
[8,"F","Security Guards","Horizon CYCC","Eerste River","City of Cape Town",30,"C","Day",15,0,"70% Male Security Officers\n30% Female Security Officers","06h00 - 18h00\n12 hours 7 days per week \nMonday - Sunday including Public Holidays","a) Hand Held Metal Detector b) Two way Radios"]
[8,"F","Security Guards","Horizon CYCC","Eerste River","City of Cape Town",30,"C","Night",0,15,"70% Male Security Officers\n30% Female Security Officers","18h00 - 06h00\n12 hours 7 days per week \nMonday - Sunday including Public Holidays","a) Hand Held Metal Detector b) Two way Radios"]
[8,"F","Control Room","Horizon CYCC","Eerste River","City of Cape Town",4,"B","Day",2,0,"N/A","06h00 - 18h00\n12 hours 7 days per week \nMonday - Sunday including Public Holidays","a) Two way Radios"]
[8,"F","Control Room","Horizon CYCC","Eerste River","City of Cape Town",4,"B","Night",0,2,"N/A","18h00 - 06h00\n12 hours 7 days per week \nMonday - Sunday including Public Holidays","a) Two way Radios"]
[9,"F","Security Guards","Sivuyile Facility","Stikland","City of Cape Town",4,"C","Day",2,0,"50% Male Security Officers\n50% Female Security Officers","06h00 - 18h00\n12 hours 7 days per week \nMonday - Sunday including Public Holidays","a) Hand Held Metal Detector b) Two way Radios"]
[9,"F","Security Guards","Sivuyile Facility","Stikland","City of Cape Town",4,"C","Night",0,2,"50% Male Security Officers\n50% Female Security Officers","18h00 - 06h00\n12 hours 7 days per week \nMonday - Sunday including Public Holidays","a) Hand Held Metal Detector b) Two way Radios"]
[9,"F","Control Room","Sivuyile Facility","Stikland","City of Cape Town",4,"B","Day",2,0,"N/A","06h00 - 18h00\n12 hours 7 days per week \nMonday - Sunday including Public Holidays","a) Two way Radios"]
[9,"F","Control Room","Sivuyile Facility","Stikland","City of Cape Town",4,"B","Night",0,2,"N/A","18h00 - 06h00\n12 hours 7 days per week \nMonday - Sunday including Public Holidays","a) Two way Radios"]
[10,null,"Shared Manager","All Facilities","Various",null,1,"A","Day",1,0,"N/A","06h00 - 18h00\n12 hours 7 days per week \nMonday - Sunday including Public Holidays","a) Two way Radios"]
[11,null,"Supervisor","Lindelani, Kraaifontein ROAR, Bonnytoun","Various",null,1,"B","Day",1,0,"N/A","06h00 - 18h00\n12 hours 7 days per week \nMonday - Sunday including Public Holidays","a) Two way Radios"]
[11,null,"Supervisor","Horizon CYCC, Sivuyile, Vredelus, Kensigton","Various",null,1,"B","Day",1,0,"N/A","06h00 - 18h00\n12 hours 7 days per week \nMonday - Sunday including Public Holidays","a) Two way Radios"]
[12,null,"Supervisor","House Outenikwa","George",null,1,"B","Day",1,0,"N/A","06h00 - 18h00\n12 hours 7 days per week \nMonday - Sunday including Public Holidays","a) Two way Radios"]
[13,null,"Supervisor","Clanwilliam CYCC","Clanwilliam",null,1,"B","Day",1,0,"N/A","06h00 - 18h00\n12 hours 7 days per week \nMonday - Sunday including Public Holidays","a) Two way Radios"]

{"sheet":"Pivot","index":2,"n_rows":46,"n_cols":10,"rows_kept":46}
[]
[]
[{"$nulls":8},"Values"]
["TOWN","WCG SITE\n/LOCATION","R/F/HO DETAILS","GRADE OF GUARDS","MALE / FEMALE GUARD RATION","SHIFT","WORKING HOURS","EQUIPMENT REQUIREMENTS TO BE INCLUDED","Sum of NUMBER OF GUARDS PER DAY SHIFT","Sum of NUMBER OF GUARDS PER NIGHT SHIFT"]
["Clanwilliam","Clanwilliam CYCC","Control Room","B","N/A","Day","06h00 - 18h00\n12 hours 7 days per week \nMonday - Sunday including Public Holidays","a) Two way Radios",2,0]
[{"$nulls":5},"Night","18h00 - 06h00\n12 hours 7 days per week \nMonday - Sunday including Public Holidays","a) Two way Radios",0,2]
[null,null,"Supervisor","B","N/A","Day","06h00 - 18h00\n12 hours 7 days per week \nMonday - Sunday including Public Holidays","a) Two way Radios",1,0]
[null,null,"Security Guards","C","70% Male Security Officers\n30% Female Security Officers","Day","06h00 - 18h00\n12 hours 7 days per week \nMonday - Sunday including Public Holidays","a) Hand Held Metal Detector b) Two way Radios",10,0]
[{"$nulls":5},"Night","18h00 - 06h00\n12 hours 7 days per week \nMonday - Sunday including Public Holidays","a) Hand Held Metal Detector b) Two way Radios",0,10]
["Eerste River","Horizon CYCC","Control Room","B","N/A","Day","06h00 - 18h00\n12 hours 7 days per week \nMonday - Sunday including Public Holidays","a) Two way Radios",2,0]
[{"$nulls":5},"Night","18h00 - 06h00\n12 hours 7 days per week \nMonday - Sunday including Public Holidays","a) Two way Radios",0,2]
[null,null,"Security Guards","C","70% Male Security Officers\n30% Female Security Officers","Day","06h00 - 18h00\n12 hours 7 days per week \nMonday - Sunday including Public Holidays","a) Hand Held Metal Detector b) Two way Radios",15,0]
[{"$nulls":5},"Night","18h00 - 06h00\n12 hours 7 days per week \nMonday - Sunday including Public Holidays","a) Hand Held Metal Detector b) Two way Radios",0,15]
["Elsies River","House Vredelus","Control Room","B","N/A","Day","06h00 - 18h00\n12 hours 7 days per week \nMonday - Sunday including Public Holidays","a) Two way Radios",2,0]
[{"$nulls":5},"Night","18h00 - 06h00\n12 hours 7 days per week \nMonday - Sunday including Public Holidays","a) Two way Radios",0,2]
[null,null,"Security Guards","C","70% Male Security Officers\n30% Female Security Officers","Day","06h00 - 18h00\n12 hours 7 days per week \nMonday - Sunday including Public Holidays","a) Hand Held Metal Detector b) Two way Radios",10,0]
[{"$nulls":5},"Night","18h00 - 06h00\n12 hours 7 days per week \nMonday - Sunday including Public Holidays","a) Hand Held Metal Detector b) Two way Radios",0,10]
["George","House Outenikwa","Control Room","B","N/A","Day","06h00 - 18h00\n12 hours 7 days per week \nMonday - Sunday including Public Holidays","a) Two way Radios",2,0]
[{"$nulls":5},"Night","18h00 - 06h00\n12 hours 7 days per week \nMonday - Sunday including Public Holidays","a) Two way Radios",0,2]
[null,null,"Supervisor","B","N/A","Day","06h00 - 18h00\n12 hours 7 days per week \nMonday - Sunday including Public Holidays","a) Two way Radios",1,0]
[null,null,"Security Guards","C","70% Male Security Officers\n30% Female Security Officers","Day","06h00 - 18h00\n12 hours 7 days per week \nMonday - Sunday including Public Holidays","a) Hand Held Metal Detector b) Two way Radios",10,0]
[{"$nulls":5},"Night","18h00 - 06h00\n12 hours 7 days per week \nMonday - Sunday including Public Holidays","a) Hand Held Metal Detector b) Two way Radios",0,10]
["Kensington","Kensington Treatment Centre","Control Room","B","N/A","Day","06h00 - 18h00\n12 hours 7 days per week \nMonday - Sunday including Public Holidays","a) Two way Radios",2,0]
[{"$nulls":5},"Night","18h00 - 06h00\n12 hours 7 days per week \nMonday - Sunday including Public Holidays","a) Two way Radios",0,2]
[null,null,"Security Guards","C","70% Male Security Officers\n30% Female Security Officers","Day","06h00 - 18h00\n12 hours 7 days per week \nMonday - Sunday including Public Holidays","a) Hand Held Metal Detector b) Two way Radios",4,0]
[{"$nulls":5},"Night","18h00 - 06h00\n12 hours 7 days per week \nMonday - Sunday including Public Holidays","a) Hand Held Metal Detector b) Two way Radios",0,4]
["Kraaifontein","Bonnytoun","Control Room","B","N/A","Day","06h00 - 18h00\n12 hours 7 days per week \nMonday - Sunday including Public Holidays","a) Two way Radios",2,0]
[{"$nulls":5},"Night","18h00 - 06h00\n12 hours 7 days per week \nMonday - Sunday including Public Holidays","a) Two way Radios",0,2]
[null,null,"Security Guards","C","70% Male Security Officers\n30% Female Security Officers","Day","06h00 - 18h00\n12 hours 7 days per week \nMonday - Sunday including Public Holidays","a) Hand Held Metal Detector b) Two way Radios",12,0]
[{"$nulls":5},"Night","18h00 - 06h00\n12 hours 7 days per week \nMonday - Sunday including Public Holidays","a) Hand Held Metal Detector b) Two way Radios",0,12]
[null,"Kraaifontein ROAR","Control Room","B","N/A","Day","06h00 - 18h00\n12 hours 7 days per week \nMonday - Sunday including Public Holidays","a) Two way Radios",2,0]
[{"$nulls":5},"Night","18h00 - 06h00\n12 hours 7 days per week \nMonday - Sunday including Public Holidays","a) Two way Radios",0,2]
[null,null,"Security Guards","C","50% Male Security Officers\n50% Female Security Officers","Day","06h00 - 18h00\n12 hours 7 days per week \nMonday - Sunday including Public Holidays","a) Hand Held Metal Detector b) Two way Radios",14,0]
[{"$nulls":5},"Night","18h00 - 06h00\n12 hours 7 days per week \nMonday - Sunday including Public Holidays","a) Hand Held Metal Detector b) Two way Radios",0,14]
["Stellenbosch","Lindelani","Control Room","B","N/A","Day","06h00 - 18h00\n12 hours 7 days per week \nMonday - Sunday including Public Holidays","a) Two way Radios",2,0]
[{"$nulls":5},"Night","18h00 - 06h00\n12 hours 7 days per week \nMonday - Sunday including Public Holidays","a) Two way Radios",0,2]
[null,null,"Security Guards","C","50% Male Security Officers\n50% Female Security Officers","Day","06h00 - 18h00\n12 hours 7 days per week \nMonday - Sunday including Public Holidays","a) Hand Held Metal Detector b) Two way Radios",10,0]
[{"$nulls":5},"Night","18h00 - 06h00\n12 hours 7 days per week \nMonday - Sunday including Public Holidays","a) Hand Held Metal Detector b) Two way Radios",0,10]
["Stikland","Sivuyile Facility","Control Room","B","N/A","Day","06h00 - 18h00\n12 hours 7 days per week \nMonday - Sunday including Public Holidays","a) Two way Radios",2,0]
[{"$nulls":5},"Night","18h00 - 06h00\n12 hours 7 days per week \nMonday - Sunday including Public Holidays","a) Two way Radios",0,2]
[null,null,"Security Guards","C","50% Male Security Officers\n50% Female Security Officers","Day","06h00 - 18h00\n12 hours 7 days per week \nMonday - Sunday including Public Holidays","a) Hand Held Metal Detector b) Two way Radios",2,0]
[{"$nulls":5},"Night","18h00 - 06h00\n12 hours 7 days per week \nMonday - Sunday including Public Holidays","a) Hand Held Metal Detector b) Two way Radios",0,2]
["Various","All Facilities","Shared Manager","A","N/A","Day","06h00 - 18h00\n12 hours 7 days per week \nMonday - Sunday including Public Holidays","a) Two way Radios",1,0]
[null,"Lindelani, Kraaifontein ROAR, Bonnytoun","Supervisor","B","N/A","Day","06h00 - 18h00\n12 hours 7 days per week \nMonday - Sunday including Public Holidays","a) Two way Radios",1,0]
[null,"Horizon CYCC, Sivuyile, Vredelus, Kensigton","Supervisor","B","N/A","Day","06h00 - 18h00\n12 hours 7 days per week \nMonday - Sunday including Public Holidays","a) Two way Radios",1,0]
["Grand Total",{"$nulls":7},110,105]

{"sheet":"Pricing Schedule","index":3,"n_rows":48,"n_cols":12,"rows_kept":48,"merged":[[0,0,0,1],[0,2,0,4],[0,5,0,6],[0,7,0,11],[1,0,1,1],[1,2,1,4],[1,5,1,6],[1,7,1,11],[2,0,2,1],[2,2,2,4],[2,5,2,6],[2,7,2,11],[3,0,3,11],[5,0,9,0],[5,1,9,1],[5,2,6,2],[5,3,6,3],[5,4,6,4],[8,2,9,2],[8,3,9,3],[8,4,9,4],[10,0,13,0],[10,1,13,1],[10,2,11,2],[10,3,11,3],[10,4,11,4],[12,2,13,2],[12,3,13,3],[12,4,13,4],[14,0,17,0],[14,1,17,1],[14,2,15,2],[14,3,15,3],[14,4,15,4],[16,2,17,2],[16,3,17,3],[16,4,17,4],[18,0,22,0],[18,1,22,1],[18,2,19,2],[18,3,19,3],[18,4,19,4],[21,2,22,2],[21,3,22,3],[21,4,22,4],[23,0,26,0],[23,1,26,1],[23,2,24,2],[23,3,24,3],[23,4,24,4],[25,2,26,2],[25,3,26,3],[25,4,26,4],[27,0,30,0],[27,1,30,1],[27,2,28,2],[27,3,28,3],[27,4,28,4],[29,2,30,2],[29,3,30,3],[29,4,30,4],[31,0,34,0],[31,1,34,1],[31,2,32,2],[31,3,32,3],[31,4,32,4],[33,2,34,2],[33,3,34,3],[33,4,34,4],[35,0,38,0],[35,1,38,1],[35,2,36,2],[35,3,36,3],[35,4,36,4],[37,2,38,2],[37,3,38,3],[37,4,38,4],[39,0,42,0],[39,1,42,1],[39,2,40,2],[39,3,40,3],[39,4,40,4],[41,2,42,2],[41,3,42,3],[41,4,42,4],[47,9,47,11]]}
["BID NO :",null,"SD 03 / 2025-2026"]
["BIDDER NAME :",{"$nulls":4},"Validity :",null,"90 Days"]
["CLOSING DATE :",null,"2025-11-10",null,null,"CLOSING TIME :",null,"11:00:00"]
["APPOINTMENT OF SERVICE PROVIDER TO RENDER PRIVATE SERCURITY SERVICES FOR DEPARTMENT OF SOCIAL DEVELOPMENT'S OWN CARE CENTRES"]
["TOWN","FACILITIES","REQUIRED","GRADE OF GUARDS","MALE / FEMALE GUARD RATION","SHIFT","WORKING HOURS","EQUIPMENT REQUIREMENTS TO BE INCLUDED","NUMBER OF GUARDS PER SHIFT","YEAR 1\nPRICE PER MONTH","PRICE PER YEAR","TOTAL AMOUNT\n(36 MONTHS)"]
["Clanwilliam","Clanwilliam CYCC","Control Room Officer","B","N/A","Day","06h00 - 18h00\n12 hours 7 days per week \nMonday - Sunday including Public Holidays","a) Two way Radios",2,null,{"$f":"J6*12","v":{"v":0,"d":"R0.00"}},{"$f":"K6*3","v":{"v":0,"d":"R0.00"}}]
[{"$nulls":5},"Night","18h00 - 06h00\n12 hours 7 days per week \nMonday - Sunday including Public Holidays","a) Two way Radios",2,null,{"$f":"J7*12","v":{"v":0,"d":"R0.00"}},{"$f":"K7*3","v":{"v":0,"d":"R0.00"}}]
[null,null,"Supervisor","B","N/A","Day","06h00 - 18h00\n12 hours 7 days per week \nMonday - Sunday including Public Holidays","a) Two way Radios",1,null,{"v":0,"d":"R0.00"},{"v":0,"d":"R0.00"}]
[null,null,"Security Guards","C","70% Male Security Officers\n30% Female Security Officers","Day","06h00 - 18h00\n12 hours 7 days per week \nMonday - Sunday including Public Holidays","a) Hand Held Metal Detector\nb) Two way Radios",10,null,{"v":0,"d":"R0.00"},{"v":0,"d":"R0.00"}]
[{"$nulls":5},"Night","18h00 - 06h00\n12 hours 7 days per week \nMonday - Sunday including Public Holidays","a) Hand Held Metal Detector\nb) Two way Radios",10,null,{"v":0,"d":"R0.00"},{"v":0,"d":"R0.00"}]
["Eerste River","Horizon CYCC","Control Room Officer","B","N/A","Day","06h00 - 18h00\n12 hours 7 days per week \nMonday - Sunday including Public Holidays","a) Two way Radios",2,null,{"v":0,"d":"R0.00"},{"v":0,"d":"R0.00"}]
[{"$nulls":5},"Night","18h00 - 06h00\n12 hours 7 days per week \nMonday - Sunday including Public Holidays","a) Two way Radios",2,null,{"v":0,"d":"R0.00"},{"v":0,"d":"R0.00"}]
[null,null,"Security Guards","C","70% Male Security Officers\n30% Female Security Officers","Day","06h00 - 18h00\n12 hours 7 days per week \nMonday - Sunday including Public Holidays","a) Hand Held Metal Detector\nb) Two way Radios",15,null,{"v":0,"d":"R0.00"},{"v":0,"d":"R0.00"}]
[{"$nulls":5},"Night","18h00 - 06h00\n12 hours 7 days per week \nMonday - Sunday including Public Holidays","a) Hand Held Metal Detector\nb) Two way Radios",15,null,{"v":0,"d":"R0.00"},{"v":0,"d":"R0.00"}]
["Elsies River","House Vredelus","Control Room Officer","B","N/A","Day","06h00 - 18h00\n12 hours 7 days per week \nMonday - Sunday including Public Holidays","a) Two way Radios",2,null,{"v":0,"d":"R0.00"},{"v":0,"d":"R0.00"}]
[{"$nulls":5},"Night","18h00 - 06h00\n12 hours 7 days per week \nMonday - Sunday including Public Holidays","a) Two way Radios",2,null,{"v":0,"d":"R0.00"},{"v":0,"d":"R0.00"}]
[null,null,"Security Guards","C","70% Male Security Officers\n30% Female Security Officers","Day","06h00 - 18h00\n12 hours 7 days per week \nMonday - Sunday including Public Holidays","a) Hand Held Metal Detector\nb) Two way Radios",10,null,{"v":0,"d":"R0.00"},{"v":0,"d":"R0.00"}]
[{"$nulls":5},"Night","18h00 - 06h00\n12 hours 7 days per week \nMonday - Sunday including Public Holidays","a) Hand Held Metal Detector\nb) Two way Radios",10,null,{"v":0,"d":"R0.00"},{"v":0,"d":"R0.00"}]
["George","House Outenikwa","Control Room Officer","B","N/A","Day","06h00 - 18h00\n12 hours 7 days per week \nMonday - Sunday including Public Holidays","a) Two way Radios",2,null,{"v":0,"d":"R0.00"},{"v":0,"d":"R0.00"}]
[{"$nulls":5},"Night","18h00 - 06h00\n12 hours 7 days per week \nMonday - Sunday including Public Holidays","a) Two way Radios",2,null,{"v":0,"d":"R0.00"},{"v":0,"d":"R0.00"}]
[null,null,"Supervisor","B","N/A","Day","06h00 - 18h00\n12 hours 7 days per week \nMonday - Sunday including Public Holidays","a) Two way Radios",1,null,{"v":0,"d":"R0.00"},{"v":0,"d":"R0.00"}]
[null,null,"Security Guards","C","70% Male Security Officers\n30% Female Security Officers","Day","06h00 - 18h00\n12 hours 7 days per week \nMonday - Sunday including Public Holidays","a) Hand Held Metal Detector\nb) Two way Radios",10,null,{"v":0,"d":"R0.00"},{"v":0,"d":"R0.00"}]
[{"$nulls":5},"Night","18h00 - 06h00\n12 hours 7 days per week \nMonday - Sunday including Public Holidays","a) Hand Held Metal Detector\nb) Two way Radios",10,null,{"v":0,"d":"R0.00"},{"v":0,"d":"R0.00"}]
["Kensington","Kensington Treatment Centre","Control Room Officer","B","N/A","Day","06h00 - 18h00\n12 hours 7 days per week \nMonday - Sunday including Public Holidays","a) Two way Radios",2,null,{"v":0,"d":"R0.00"},{"v":0,"d":"R0.00"}]
[{"$nulls":5},"Night","18h00 - 06h00\n12 hours 7 days per week \nMonday - Sunday including Public Holidays","a) Two way Radios",2,null,{"v":0,"d":"R0.00"},{"v":0,"d":"R0.00"}]
[null,null,"Security Guards","C","70% Male Security Officers\n30% Female Security Officers","Day","06h00 - 18h00\n12 hours 7 days per week \nMonday - Sunday including Public Holidays","a) Hand Held Metal Detector\nb) Two way Radios",4,null,{"v":0,"d":"R0.00"},{"v":0,"d":"R0.00"}]
[{"$nulls":5},"Night","18h00 - 06h00\n12 hours 7 days per week \nMonday - Sunday including Public Holidays","a) Hand Held Metal Detector\nb) Two way Radios",4,null,{"v":0,"d":"R0.00"},{"v":0,"d":"R0.00"}]
["Kraaifontein","Bonnytoun","Control Room Officer","B","N/A","Day","06h00 - 18h00\n12 hours 7 days per week \nMonday - Sunday including Public Holidays","a) Two way Radios",2,null,{"v":0,"d":"R0.00"},{"v":0,"d":"R0.00"}]
[{"$nulls":5},"Night","18h00 - 06h00\n12 hours 7 days per week \nMonday - Sunday including Public Holidays","a) Two way Radios",2,null,{"v":0,"d":"R0.00"},{"v":0,"d":"R0.00"}]
[null,null,"Security Guards","C","70% Male Security Officers\n30% Female Security Officers","Day","06h00 - 18h00\n12 hours 7 days per week \nMonday - Sunday including Public Holidays","a) Hand Held Metal Detector\nb) Two way Radios",12,null,{"v":0,"d":"R0.00"},{"v":0,"d":"R0.00"}]
[{"$nulls":5},"Night","18h00 - 06h00\n12 hours 7 days per week \nMonday - Sunday including Public Holidays","a) Hand Held Metal Detector\nb) Two way Radios",12,null,{"v":0,"d":"R0.00"},{"v":0,"d":"R0.00"}]
["Kraaifontein","Kraaifontein ROAR","Control Room Officer","B","N/A","Day","06h00 - 18h00\n12 hours 7 days per week \nMonday - Sunday including Public Holidays","a) Two way Radios",2,null,{"v":0,"d":"R0.00"},{"v":0,"d":"R0.00"}]
[{"$nulls":5},"Night","18h00 - 06h00\n12 hours 7 days per week \nMonday - Sunday including Public Holidays","a) Two way Radios",2,null,{"v":0,"d":"R0.00"},{"v":0,"d":"R0.00"}]
[null,null,"Security Guards","C","50% Male Security Officers\n50% Female Security Officers","Day","06h00 - 18h00\n12 hours 7 days per week \nMonday - Sunday including Public Holidays","a) Hand Held Metal Detector\nb) Two way Radios",14,null,{"v":0,"d":"R0.00"},{"v":0,"d":"R0.00"}]
[{"$nulls":5},"Night","18h00 - 06h00\n12 hours 7 days per week \nMonday - Sunday including Public Holidays","a) Hand Held Metal Detector\nb) Two way Radios",14,null,{"v":0,"d":"R0.00"},{"v":0,"d":"R0.00"}]
["Stellenbosch","Lindelani","Control Room Officer","B","N/A","Day","06h00 - 18h00\n12 hours 7 days per week \nMonday - Sunday including Public Holidays","a) Two way Radios",2,null,{"v":0,"d":"R0.00"},{"v":0,"d":"R0.00"}]
[{"$nulls":5},"Night","18h00 - 06h00\n12 hours 7 days per week \nMonday - Sunday including Public Holidays","a) Two way Radios",2,null,{"v":0,"d":"R0.00"},{"v":0,"d":"R0.00"}]
[null,null,"Security Guards","C","50% Male Security Officers\n50% Female Security Officers","Day","06h00 - 18h00\n12 hours 7 days per week \nMonday - Sunday including Public Holidays","a) Hand Held Metal Detector\nb) Two way Radios",10,null,{"v":0,"d":"R0.00"},{"v":0,"d":"R0.00"}]
[{"$nulls":5},"Night","18h00 - 06h00\n12 hours 7 days per week \nMonday - Sunday including Public Holidays","a) Hand Held Metal Detector\nb) Two way Radios",10,null,{"v":0,"d":"R0.00"},{"v":0,"d":"R0.00"}]
["Stikland","Sivuyile Facility","Control Room Officer","B","N/A","Day","06h00 - 18h00\n12 hours 7 days per week \nMonday - Sunday including Public Holidays","a) Two way Radios",2,null,{"v":0,"d":"R0.00"},{"v":0,"d":"R0.00"}]
[{"$nulls":5},"Night","18h00 - 06h00\n12 hours 7 days per week \nMonday - Sunday including Public Holidays","a) Two way Radios",2,null,{"v":0,"d":"R0.00"},{"v":0,"d":"R0.00"}]
[null,null,"Security Guards","C","50% Male Security Officers\n50% Female Security Officers","Day","06h00 - 18h00\n12 hours 7 days per week \nMonday - Sunday including Public Holidays","a) Hand Held Metal Detector\nb) Two way Radios",2,null,{"v":0,"d":"R0.00"},{"v":0,"d":"R0.00"}]
[{"$nulls":5},"Night","18h00 - 06h00\n12 hours 7 days per week \nMonday - Sunday including Public Holidays","a) Hand Held Metal Detector\nb) Two way Radios",2,null,{"v":0,"d":"R0.00"},{"v":0,"d":"R0.00"}]
["Various","All Facilities","Shared Manager","A","N/A","Day","06h00 - 18h00\n12 hours 7 days per week \nMonday - Sunday including Public Holidays","a) Two way Radios",1,null,{"v":0,"d":"R0.00"},{"v":0,"d":"R0.00"}]
["Various","a) Lindelani\nb) Kraaifontein ROAR\nc) Bonnytoun","Supervisor (one supervisor for all 3 facilities)","B","N/A","Day","06h00 - 18h00\n12 hours 7 days per week \nMonday - Sunday including Public Holidays","a) Two way Radios",1,null,{"v":0,"d":"R0.00"},{"v":0,"d":"R0.00"}]
["Various","a) Horizon CYCC\nb) Sivuyile\nc) Vredelus\nd) Kensigton","Supervisor (one supervisor for all 4 facilities)","B","N/A","Day","06h00 - 18h00\n12 hours 7 days per week \nMonday - Sunday including Public Holidays","a) Two way Radios",1,null,{"v":0,"d":"R0.00"},{"v":0,"d":"R0.00"}]
["TOTAL PRICE",{"$nulls":8},{"$f":"SUM(J6:J46)","v":{"v":0,"d":"R0.00"}},{"$f":"SUM(K6:K46)","v":{"v":0,"d":"R0.00"}}]
["TOTAL BID PRICE (SUM OF ALL 3 YEARLY TOTALS)",{"$nulls":8},{"$f":"SUM(L6:L46)","v":{"v":0,"d":"R0.00"}}]